{"text_format":"3","workbook":"xlsx","n_sheets":3,"sheets":["FSL_420_500","SW-R FSL420_500","SW-L FSL420_500"],"not_rendered":{"images":14,"defined_names":1},"read":"whole","date_system":"1900"}

{"sheet":"FSL_420_500","index":0,"n_rows":134,"n_cols":42,"rows_kept":134,"merged":[[1,23,2,27],[3,23,3,27],[6,10,6,12],[6,17,6,18],[8,10,8,12],[10,3,10,5],[10,10,10,12],[10,17,11,17],[12,10,12,12],[12,16,13,17],[14,17,15,17],[14,18,16,18],[16,7,18,7],[16,17,17,17],[18,1,19,1],[18,2,19,2],[18,18,19,18],[18,19,19,19],[20,1,27,1],[20,20,22,20],[24,19,26,19],[26,7,27,7],[30,18,31,18],[30,24,30,26],[31,4,31,5],[38,1,40,1],[40,4,40,5],[48,17,49,27],[51,17,52,27],[53,17,54,27],[59,17,59,18],[59,19,59,20],[59,21,59,22],[59,23,59,24],[60,12,60,13],[60,17,60,18],[60,19,60,20],[60,21,60,22],[60,23,60,24],[61,17,62,20],[61,21,62,27],[63,21,65,27],[64,12,64,13],[66,21,67,24],[66,26,66,27],[67,26,67,27]]}
[{"$nulls":29},"č.jaz.",{"$f":"VLOOKUP(E5,AD3:AE11,2,FALSE)","v":8},null,"SVYHLEDAT","CZ","EN","DE","PL","FR","NL","EST","FIN","RU"]
[{"$nulls":23},{"$f":"VLOOKUP(AG12,AG2:AR97,$AE$1+1,FALSE)","v":"KALLISTUKSELLA VAKIONOSTO (FSL420(500))"},{"$nulls":5},"Jazyk","číslo",null,{"$f":"VLOOKUP(AH2,AH2:AR97,$AE$1,FALSE)","v":"Valitse kieli:"},"Zvolit jazyk: ","Select a language:","Wählen Sie eine Sprache","Wybierz język","Sélectionner une langue","Kies een taal:","Valige keel","Valitse kieli:","Выберите язык:"]
[null,"Zvol jazyk:",{"$nulls":6},{"$f":"VLOOKUP(AG3,AG2:AR97,$AE$1+1,FALSE)","v":"Oviaukon leveys"},null,null,"mm",{"$nulls":17},"CZ",1,null,{"$f":"VLOOKUP(AH3,AH3:AR97,$AE$1,FALSE)","v":"Oviaukon leveys"},"Šířka otvoru","Opening width","Lichte Breite","Szerokość otworu","LARGEUR DE BAIE","Dagmaat breedte","Ava laius","Oviaukon leveys","Ширина проема"]
[null,"Select a language:",{"$nulls":21},"W max 8000 mm; H max 6500 mm; max. 40 m2",{"$nulls":5},"EN",2,null,{"$f":"VLOOKUP(AH4,AH4:AR98,$AE$1,FALSE)","v":"Oviaukon korkeus"},"Výška otvoru","Opening height","Lichte Höhe","Wysokość otworu","HAUTEUR DE BAIE","Dagmaat hoogte","Ava kõrgus","Oviaukon korkeus","Высота проема"]
[null,"Wählen Sie eine Sprache:",null,null,"FIN",{"$nulls":3},{"$f":"VLOOKUP(AG4,AG2:AR97,$AE$1+1,FALSE)","v":"Oviaukon korkeus"},null,null,"mm",null,null,{"$f":"VLOOKUP(AH100,AH100:AR176,$AE$1,FALSE)","v":"\nTäytä kentät, jotka on merkitty värillä!"},{"$nulls":14},"DE",3,null,{"$f":"VLOOKUP(AH5,AH5:AR97,$AE$1,FALSE)","v":"SISÄLTÄPÄIN KUVATTUNA"},"POHLED ZEVNITŘ","INTERIOR VIEW","INNENANSICHT","Widok od środka","VUE INTERIEURE","BINNENAANZICHT","seestvaade","SISÄLTÄPÄIN KUVATTUNA","Вид изнутри"]
[null,"Wybierz język:",{"$nulls":27},"PL",4,null,{"$f":"VLOOKUP(AH6,AH6:AR101,$AE$1,FALSE)","v":"LEIKKAUS A-A"},"ŘEZ A-A","SECTION A-A","DURCHSCHNITT A-A","Przekrój A-A","COUPE A-A","DOORSNEDE A-A","vaade A-A","LEIKKAUS A-A","Разрез А-А"]
[null,"Sélectionner une langue:",{"$nulls":6},{"$f":"VLOOKUP(AG102,AG8:AR102,$AE$1+1,FALSE)","v":"Ohjattu"},{"$nulls":5},{"$f":"IF(OR(K7=AG103,K7=\"\"),\"\",VLOOKUP(AG107,AG8:AL107,$AE$1+1,FALSE))","v":""},{"$nulls":14},"FR",5,null,{"$f":"VLOOKUP(AH7,AH7:AR101,$AE$1,FALSE)","v":"LEIKKAUS B-B"},"ŘEZ B-B","SECTION B-B","DURCHSCHNITT B-B","Przekrój B-B","COUPE B-B","DOORSNEDE B-B","VAADE B-B","LEIKKAUS B-B","Разрез B-B"]
[null,"Valige keel",{"$nulls":27},"NL",6,null,{"$f":"VLOOKUP(AH8,AH8:AR102,$AE$1,FALSE)","v":"HUOMAUTUS:"},"POZNÁMKA:","NOTE:","ACHTUNG:","Uwaga:","Remarque:","OPMERKING:","MÄRKUS","HUOMAUTUS:","ПРИМЕЧАНИЯ:"]
[null,"Valitse kieli:",{"$nulls":6},{"$f":"AG118","v":"lamellin tyypi"},{"$nulls":20},"EST",7]
[null,"Выберите язык:",{"$nulls":14},{"$f":"VLOOKUP(AG6,AG2:AR97,$AE$1+1,FALSE)","v":"LEIKKAUS A-A"},{"$nulls":12},"FIN",8]
[{"$nulls":3},{"$f":"VLOOKUP(AG5,AG2:AR97,$AE$1+1,FALSE)","v":"SISÄLTÄPÄIN KUVATTUNA"},{"$nulls":4},{"$f":"AG124","v":"Kiskojen tyyppi"},{"$nulls":8},{"$f":"IF($K$7=$AG$103,$K$5+490,$K$5+660)","v":660},{"$nulls":11},"RU",9]
[{"$nulls":16},{"$f":"K5","v":0},{"$nulls":15},{"$f":"VLOOKUP(AH12,AH12:AR106,$AE$1,FALSE)","v":"KALLISTUKSELLA VAKIONOSTO (FSL420(500))"},"STANDARDNÍ VEDENÍ POD ÚHLEM (FSL420(500))","ROOF LINE FOLLOWING SYSTEM, STANDARD LIFT (FSL420(500))","DACHFOLGESYSTEM STANDARD BESCHLAG (FSL420(500))","PROWADZENIE STANDARDOWE POD KĄTEM (FSL420(500))","LEVEE STANDARD avec REFOULEMENT TABLIER SOUS RAMPANT TOITURE (FSL420(500))","DAKLIJNVOLGEND SYSTEEM, STANDAARD PLAFONDSYSTEEM (FSL420(500))","Katusekallet järgiv standardtõste (FSL420(500))","KALLISTUKSELLA VAKIONOSTO (FSL420(500))","СИСТЕМА НАПРАВЛЯЮЩИХ ВДОЛЬ КРЫШИ, СТАНДАРТНЫЙ НАКЛОННЫЙ ПОДЪЕМ (FSL420(500))"]
[{"$nulls":8},{"$f":"AG128","v":"Kulma"},{"$nulls":7},{"$f":"IF(R11<3000,0,IF(AND(R11>=3000,R11<4500),K5/2,(K5/3*2)))","v":0},{"$nulls":15},{"$f":"VLOOKUP(AH13,AH13:AR107,$AE$1,FALSE)","v":"vaijerit SISÄLLÄ"},"LANKA UVNITŘ","cables INSIDE","Seile innen der Führungschiene","linki WEWNĄTRZ","Câbles INTERIEURS","verenpakket boven latei","Trossid sees","vaijerit SISÄLLÄ","ТРОСЫ ВНУТРИ "]
[{"$nulls":32},{"$f":"VLOOKUP(AH14,AH14:AR108,$AE$1,FALSE)","v":"pro HL>600 ja HL<=1200"},"pro HL>600 a HL<=1200","for HL>600 and HL<=1200","pro HL>600 und HL<=1200","pro HL>600 i HL<=1200","pro HL>600 et HL<=1200","van HL>600 tot HL<=1200","HL>600 ja HL<=1200","pro HL>600 ja HL<=1200","при высоте подъема > 600 и <= 1200"]
[null,null,{"$f":"IF($K$11=\"2\"\"\",100,120)","v":120},{"$nulls":7},{"$f":"IF(OR(K11=AG125,K11=AG126),\"W>7500 mm => 3'\",\"\")","v":""},{"$nulls":6},{"$f":"IF(R11>=4500,K5/3,0)","v":0},{"$nulls":14},{"$f":"VLOOKUP(AH15,AH15:AR109,$AE$1,FALSE)","v":"Lamelli 40mm"},"PANEL 40mm","SECTION THICKNESS 40 mm","Paneel 40 mm","Panel 40 mm","40 mm PANNEAU","PANEEL 40 mm","Paneel 40 mm","Lamelli 40mm","ТОЛЩИНА СЕКЦИИ 40мм "]
[{"$nulls":10},{"$f":"IF(OR(K11=AG125,K11=AG126),\"H> 4500 mm &W>6500 mm => 3'\",\"\")","v":""},{"$nulls":21},{"$f":"VLOOKUP(AH16,AH16:AR110,$AE$1,FALSE)","v":"Max. W x H 4000x4000"},"Max. W x H 4000x4000","Max. W x H 4000x4000","Max. W x H 4000x4000","Max. W x H 4000x4000","Max. W x H 4000x4000","Max. W x H 4000x4000","Max. W x H 4000x4000","Max. W x H 4000x4000","макс. ШхВ (WxH) 4000x4000"]
[{"$nulls":7},{"$f":"IF($K$5<5500,160,200)","v":160}]
[]
[null,{"$f":"\"A= \"&$P$60","v":"A= 340"},{"$nulls":16},{"$f":"\"A= \"&P60","v":"A= 340"},{"$f":"\"F= \"&P55","v":"F= 420"}]
[{"$nulls":8},{"$f":"AG116","v":"Mootorin asenuspinta"},{"$nulls":23},{"$f":"VLOOKUP(AH20,AH20:AR114,$AE$1,FALSE)","v":"asennus tiiliseinän"},"Montáž na cihlové zdivo","mounting on brickwork","Montage auf Mauerwerk und Ziegel","montaż do muru i cegły","montage sur béton","montage op beton","Paigaldus kiviseinale","asennus tiiliseinän","монтаж на бетон"]
[null,{"$f":"\"H= \"&K5","v":"H= "},{"$nulls":22},{"$f":"VLOOKUP(AG20,AG2:AR97,$AE$1+1,FALSE)","v":"asennus tiiliseinän"},{"$nulls":7},{"$f":"VLOOKUP(AH21,AH21:AR115,$AE$1,FALSE)","v":"asennus betoniin"},"Montáž na porobeton","mounting on cellular concrete","Montage auf Porenbeton oder Gasbeton","montaż do betonu porowatego","montage sur parpaing creux","montage op gasbeton","Paigaldus poorbetoonile","asennus betoniin","монтаж на газобетон"]
[{"$nulls":8},{"$f":"VLOOKUP(AG48,AG2:AR97,$AE$1+1,FALSE)","v":"tarvittava tila mootori- tai ketjunostolle (L tai R)"},{"$nulls":23},{"$f":"VLOOKUP(AH22,AH22:AR116,$AE$1,FALSE)","v":"asennus eristettyyn seinäelementtiin"},"Montáž na opláštění","mounting on insulated cladding","Montage auf ISO-Trapezblechfassade","montaż do płaszcza","montage sur structure métallique  (a fournir par le charpentier)","montage op binnendooscontructie met damwandbeplating","Paigaldus soojustatud seinapaneelile","asennus eristettyyn seinäelementtiin","монтаж на металлокаркас"]
[{"$nulls":8},{"$f":"VLOOKUP(AG49,AG2:AR97,$AE$1+1,FALSE)","v":"kiinnityspinta ohjauspaneelia varten ,mitat 250 x 400 mm"},{"$nulls":25},"mounting on insulated cladding","Montage auf ISO-Trapezblechfassade"]
[{"$nulls":8},{"$f":"VLOOKUP(AG50,AG2:AR97,$AE$1+1,FALSE)","v":"keskiviiva ca 1,400 -1,500 mm: n korkeudella lattiasta"}]
[{"$nulls":19},{"$f":"\"H= \"&K5","v":"H= "},{"$nulls":12},{"$f":"VLOOKUP(AH25,AH25:AR119,$AE$1,FALSE)","v":"ASIAKKAAN TEHTÄVÄT TYÖT, ELLEI ETUKÄTEEN KIRJALLISESTI MUUTOIN SOVITTU "},"PRÁCE, KTERÉ MUSÍ BÝT PROVEDENY ZÁKAZNÍKEM PŘED MONTÁŽÍ, POKUD NEBYLO DOHODNUTO JINAK","WORK TO BE CARRIED OUT BY CUSTOMER, UNLESS IN ADVANCE OTHERWISE IS AGREED IN WRITING.","VORBEREITUNGEN UND ARBEITEN DIE VOM AUFTRAGGEBER ZU ERBRINGEN SIND, AUßER BEI SCHRIFTLICHER VEREINBARUNG IM VORAUS:","PRACE, KTÓRE MUSZĄ ZOSTAĆ WYKONANE PRZEZ KLIENTA PRZED WYKONANIEM MONTAŻU, O ILE NIE UZGODNIONO INACZEJ.","APPROVISIONNEMENT & TRAVAUX INCOMBANT AU MAITRE D'OUVRAGE  (sauf accord contraire)","VOORZIENINGEN EN WERKZAAMHEDEN DOOR OPDRACHTGEVER TE VERZORGEN, TENZIJ VOORAF SCHRIFTELIJK ANDERS IS OVEREENGEKOMEN ","Kliendi poolt tehtavad ettevalmistustööd v.a juhul kui pole kirjalikult teistmoodi kokku lepitud","ASIAKKAAN TEHTÄVÄT TYÖT, ELLEI ETUKÄTEEN KIRJALLISESTI MUUTOIN SOVITTU ","МАТЕРИАЛЫ И ПРОВЕДЕНИЕ РАБОТ ОБЕСПЕЧИВАЮТСЯ КЛИЕНТОМ,ЕСЛИ ИНОЕ НЕ ОГОВОРЕНО ЗАРАНЕЕ В ПИСЬМЕННОЙ ФОРМЕ"]
[{"$nulls":24},{"$f":"VLOOKUP(AG21,AG2:AR97,$AE$1+1,FALSE)","v":"asennus betoniin"},{"$nulls":7},"\nRakenteellinen:","Konstrukční:","Constructional :","Bauseits:","Konstrukcyjne:","Structure: ","Bouwkundig:","Ehituslikud:","\nRakenteellinen:","Конструктивно:"]
[{"$nulls":8},{"$f":"VLOOKUP(AG51,AG3:AR98,$AE$1+1,FALSE)","v":"Pistorasiasta CEE 16A, 5P, 400V, suojattu 6 A (10 A) katkaisijalla, vikavirtasuoja I = 30 mA."},{"$nulls":23},"Toimittaa ja asentaa asennuskehyksen ja asennuspinnat kiskoille ja jousipaketille tapauksessa jossa kevytbetooni tai sandwich-paneeli jne.","Příprava montážních ploch pro vedení vrat a pro pružiny.","Supply and fix mounting frame and mounting surfaces for the rails and the spring packet in case of aerated concrete or sandwichpanels etc.","Ein stählerner Montagerahmen zur Befestigung der vertikalen Laufschienen und des Federpakets bei nicht tragfähigen Flächen wie z.B. Porenbeton, Gasbeton, Isolationspanelen u.s.w..","Przygotowanie powierzchni montażowych dla prowadzenia bramy oraz dla sprężyn.","Préparation de la structure de montage des rails de guidage et des ressorts pour une pose sur panneaux isolants","Een stalen montageframe voor de bevestiging van de verticale looprails en het verenpakket bij niet dragende montagevlakken, zoals gasbeton, isolatiepanelen, sandwichpanelen enz.","Avaettevalmistusraami tarnimine ja paigaldus siinide ja vedrude kinnituseks","Toimittaa ja asentaa asennuskehyksen ja asennuspinnat kiskoille ja jousipaketille tapauksessa jossa kevytbetooni tai sandwich-paneeli jne.","Стальная монтажная рама для установки вертикальных направляющих и пружин в случае не несущих монтажных поверхностей, таких как: газобетон, изоляционные панели, сэндвич-панели и т.д."]
[{"$nulls":32},"Asennus mahdollisuudet vaakakiskoille enintään 1 metrin korkeudella kiskoista pitää olla mahdollista.","Montáž vodorovného vedení může být max. 1 metr od pevné konstrukce.","Mounting possibilities for the horizontal rails up to 1 meter above the rails must be provided.","Befestigungsmöglichkeit für die Zwischen- und Endaufhängung der horizontalen Laufschienen bis zu max. 1 m über diesen Laufschienen.","Montaż prowadzenia poziomego można wykonać w oddaleniu maks. 1 metra od konstrukcji stałej.","Lorsque les possibilités de montage des rails horizontaux dépassent ","Bevestigingsmogelijkheid voor de tussen- en eindophanging van de horizontale looprails tot max. 1m boven deze looprails.","Paigaldusruum ülalpool siini max. 1m","Asennus mahdollisuudet vaakakiskoille enintään 1 metrin korkeudella kiskoista pitää olla mahdollista.","Способы крепления для горизонтальных направляющих максимум до 1м над данными направляющими."]
[{"$nulls":32},"Tarvittava kiinnityspinta ja vapaa tilaa kuvan mukaisesti.","Nezbytné montážní plochy a volný prostor dle nákresu.","Necessary mounting surface and free room as shown.","Benötigte Montageflächen und Freiräume gemäß Zeichnung.","Niezbędne powierzchnie montażowe oraz wolna przestrzeń wg rysunku.","Adapter la structure et l' espace disponible selon nos plans de réservations ci-contre","Benodigde montagevlakken en vrije ruimtes, volgens tekening.","Piisav paigaldusruum vastavalt lisatud joonisele","Tarvittava kiinnityspinta ja vapaa tilaa kuvan mukaisesti.","Необходимые монтажные поверхности и свободное пространство в соответствии с чертежом"]
[null,null,{"$f":"IF($K$11=\"2\"\"\",80,100)","v":100},null,null,{"$f":"IF($K$11=\"2\"\"\",80,100)","v":100},{"$nulls":26},"Sähkönsyöttö tarvittu:","Elektrická příprava (pro elektricky ovládaná sekční vrata): ","Electrical supply required to be :","Elektrisch (bei elektrisch bedienten Toren):","Przygotowanie elektryczne (dla elektrycznie sterowanej bramy segmentowej) :","Alimentation electrique  (pour porte motorisée) :","Elektrisch: (bij elektrisch bediende deuren)","Elektriliselt avatavate uste jaoks","Sähkönsyöttö tarvittu:","Электрика (для ворот с электрическим управлением):"]
[{"$nulls":18},{"$f":"IF($K$9=$AG$120,290,250)","v":250},{"$nulls":5},{"$f":"VLOOKUP($AG$22,$AG$2:$AR$97,$AE$1+1,FALSE)","v":"asennus eristettyyn seinäelementtiin"},{"$nulls":7},"400V / 230V 3 vaihe+neutraali ja maadoitus tarjotuna Euro pistorasiasta.","Zásuvka CEE 16 A, 5P, 400 V = zásuvka s nulovým a zemnícím vodičem","400V/230V 3 phase neutral and earth terminating, provided by euro plug socket.","Stromzufuhr 400V/230V mittels Eurosteckdose, 3 Phasen+0+PE max.1 meter vom Schaltkasten.","Gniazdo CEE 16 A, 5P, 400 V = gniazdo z przewodnikiem zerowym i uziemiającym","400V triphase T+N avec prise de raccordement CEE 16 A","Voeding  400V/230V door middel van eurostopcontact, 3 fase+0+PE max. ","Toite vedu ajamini - 400V/230V, 3 faasi","400V / 230V 3 vaihe+neutraali ja maadoitus tarjotuna Euro pistorasiasta.","Питание 400V/230V посредством заземленной евророзетки, 3 фазы+0+РЕ "]
[null,null,{"$f":"IF(K11=AG126,C34+25,C34)","v":125},null,{"$f":"K3","v":0},null,null,{"$f":"IF(K11=AG126,G34+25,G34)","v":125},{"$nulls":24},"Tarjoa sopivan kiinnityspinnan  ohjauspaneelia varten ,mitat 250 x 400 mm","Zajistit vhodnou montážní plochu pro řídící jednotku motoru 250 x 400 mm","Provide suitable mounting surface for control panel, dimensions 250 x 400 mm","Montagefläche für Schaltkasten, Abmessungen 250 x400 mm","Zapewnić odpowiednią powierzchnię montażową dla jednostki sterującej silnika 250x400","Assurer une surface de montage adéquate pour le coffret de commande du moteur L.250 x H.400 mm","Montagevlak t.b.v. schakelkast, afmetingen 250 x 400 mm","Kontrolleri jaoks piisava paigaldusruumi tagamine 250x400 mm","Tarjoa sopivan kiinnityspinnan  ohjauspaneelia varten ,mitat 250 x 400 mm","необходимо обеспечить монтажную поверхность для панели управления, размеры 250х400 мм"]
[]
[null,null,{"$f":"IF(K7=AG103,125,IF(AND(K7=AG104,R7=AG108),375,IF(AND(K7=AG105,R7=AG108),375,125)))","v":125},{"$nulls":3},{"$f":"IF(K7=AG103,125,IF(AND(K7=AG104,R7=AG109),375,IF(AND(K7=AG105,R7=AG109),375,125)))","v":125}]
[{"$nulls":32},{"$f":"VLOOKUP(AH35,AH35:AR129,$AE$1,FALSE)","v":"TARVITTAVA KIINNITYSPINTA"},"NEZBYTNÁ MONTÁŽNÍ PLOCHA","NECESSARY MOUNTING SURFACE","BENÖTIGTE MONTAGEFLÄCHEN","NIEZBĘDNA POWIERZCHNIA MONTAŻOWA","SURFACE NECESSAIRE DE MONTAGE","BENODIGDE MONTAGEVLAKKEN","Vajalik paigaldusruum","TARVITTAVA KIINNITYSPINTA","необходимая монтажная поверхность"]
[{"$nulls":4},{"$f":"VLOOKUP(AG7,AG2:AR97,$AE$1+1,FALSE)","v":"LEIKKAUS B-B"},{"$nulls":27},{"$f":"VLOOKUP(AH36,AH36:AR130,$AE$1,FALSE)","v":"LISÄ ASENNUSTILA "},"DODATEČNÉ MONTÁŽNÍ PLOCHY PRO KONZOLY","EXTRA PLANES AT WEAK SURFACES","MONTAGEFLÄCHE FÜR DEN MOTOR","Dodatkowych obszarach montażu konsoli","FACILITÉ DE MONTAGE ADDITIONNEL POUR CONSOLE","EXTRA VLAKKEN BIJ ZWAKKE ONDERGROND","Lisaplaadid nõrgale pinnale","LISÄ ASENNUSTILA ","металлокаркас из стальной профильной трубы"]
[{"$nulls":11},{"$f":"VLOOKUP(AG41,AG2:AR97,$AE$1+1,FALSE)","v":"kaltevuus"},{"$nulls":20},{"$f":"VLOOKUP(AH37,AH37:AR131,$AE$1,FALSE)","v":"TARVITTAVA VAPAA TILA"},"NEZBYTNÝ VOLNÝ PROSTOR","NECESSARY FREE ROOM","BENÖTIGTER FREIRAUM","niezbędne miejsce","ESPACE LIBRE NECESSAIRE","BENODIGDE VRIJE RUIMTE","Vajalik vaba ruum ","TARVITTAVA VAPAA TILA","необходимое свободное пространство"]
[{"$nulls":32},{"$f":"VLOOKUP(AH38,AH38:AR132,$AE$1,FALSE)","v":"LISÄTILA MOOTORIA/KETJUA VARTEN"},"VOLNÝ PROSTOR PRO MOTOR/ŘETĚZ.PŘEVOD","EXTRA FREE ROOM FOR MOTOR/CHAIN","EXTRA FREIRAUM FÜR MOTOR/KETTE","Wolnego miejsca na silnik, napęd łańcuchowy","ESPACE LIBRE POUR MOTEUR / CHAINE DE LEVAGE.","EXTRA VRIJE RUIMTE BIJ MOTOR/KETTING","Lisa vaba ruum mootorile/ketile","LISÄTILA MOOTORIA/KETJUA VARTEN","дополнительное свободное пространство для двигателя/подъемной цепи"]
[null,250]
[]
[{"$nulls":32},{"$f":"VLOOKUP(AH41,AH41:AR135,$AE$1,FALSE)","v":"kaltevuus"},"sklon podlahy","fall of the floor","Bodenneigung","nachylenie podłogi","réservations seuil béton","vloer met waterkering","pinna langus","kaltevuus","пол с водоотводом"]
[{"$nulls":32},{"$f":"VLOOKUP(AH42,AH42:AR136,$AE$1,FALSE)","v":"ulkopuoli"},"směrem ven","outside","nach aussen","w kierunku na zewnątrz",{"$f":"\"\"","v":""},"buitenzijde","väljaspool","ulkopuoli"]
[{"$nulls":4},{"$f":"$C$32+$H$32+$E$32","v":250},{"$nulls":27},{"$f":"VLOOKUP(AH43,AH43:AR137,$AE$1,FALSE)","v":"kaltevuus 3%"},"sklon 3%","fall 3%","Gefälle 3%","nachylenie 3%","PENTE 3%","afschot 3%","langus 3%","kaltevuus 3%","наклон 3%"]
[{"$nulls":32},{"$f":"VLOOKUP(AH44,AH44:AR138,$AE$1,FALSE)","v":"sisäinen taso"},"směrem ven","internal level","Wasserschenkel","w kierunku na zewnątrz","réservations seuil béton","niveau binnen","Sisemine tasand","sisäinen taso"]
[{"$nulls":17},{"$f":"VLOOKUP(AG35,AG2:AR97,$AE$1+1,FALSE)","v":"TARVITTAVA KIINNITYSPINTA"},{"$nulls":5},{"$f":"VLOOKUP(AG37,AG4:AR98,$AE$1+1,FALSE)","v":"TARVITTAVA VAPAA TILA"},{"$nulls":8},{"$f":"VLOOKUP(AH45,AH45:AR139,$AE$1,FALSE)","v":"lattia nostetulla"},"sklon podlahy","floor with raised","Boden mit","nachylenie podłogi",{"$f":"\"\"","v":""},"vloer met  ","põrand koos tõstetud sisetasandiga","lattia nostetulla","пол с наклоном 3%"]
[]
[{"$nulls":17},{"$f":"VLOOKUP(AG36,AG4:AR98,$AE$1+1,FALSE)","v":"LISÄ ASENNUSTILA "}]
[null,{"$f":"VLOOKUP(AG8,AG2:AR97,$AE$1+1,FALSE)","v":"HUOMAUTUS:"},{"$nulls":30},{"$f":"VLOOKUP(AH48,AH48:AR142,$AE$1,FALSE)","v":"tarvittava tila mootori- tai ketjunostolle (L tai R)"},"nezbytný boční prostor pro motor nebo řetězový pohon ( L nebo R )","necessary side room for electrical- or hauling chain operation (L or R)","Benötigter Freiraum bei Elektro- oder Haspelkettenbedienung (wahlweise L oder R)","niezbędna przestrzeń boczna dla silnika lub napędu łańcuchowego ( L lub R )","écoinçon minimum requis pour le moteur ou treuil a chaîne (L ou R)","benodigde vrije ruimte voor elektrische- of ketting bediening (L of R)","vajalik küljeruum mootori või tali puhul (L või R)","tarvittava tila mootori- tai ketjunostolle (L tai R)","необходимое боковое пространство для электропривода или цепного редуктора (L и R)"]
[null,{"$f":"VLOOKUP(AG54,AG2:AR97,$AE$1+1,FALSE)","v":"Ylä ja sivukarmien sekä jousipaketin asennuspinnan pitää olla tasaisia ja samassa linjassa"},{"$nulls":15},{"$f":"VLOOKUP(AG25,AG2:AR97,$AE$1+1,FALSE)","v":"ASIAKKAAN TEHTÄVÄT TYÖT, ELLEI ETUKÄTEEN KIRJALLISESTI MUUTOIN SOVITTU "},{"$nulls":14},{"$f":"VLOOKUP(AH49,AH49:AR143,$AE$1,FALSE)","v":"kiinnityspinta ohjauspaneelia varten ,mitat 250 x 400 mm"},"montážní plocha pro řídící jednotku motoru, rozměr 250 x 400 mm","mounting surface for control panel dimensions 250 x 400 mm","Montagefläche für Antriebsteuerung Mass 250 x 400 mm","powierzchnia montażowa dla jednostki sterującej silnika wymiary 250 x 400 mm","surface de montage pour le Coffret de commande  du moteur (dimensions : L.250 x H.400 mm)","montagevlak t.b.v. schakelkast afmetingen 250 x 400 mm","paigalduspind 250x400 mm kontrollerile","kiinnityspinta ohjauspaneelia varten ,mitat 250 x 400 mm","монтажная поверхность для блока управления 250x400мм"]
[null,{"$f":"VLOOKUP(AG55,AG2:AR97,$AE$1+1,FALSE)","v":"Lisäksi oviaukon pitää olla pysty- ja vaakasuora sekä nelikulmainen."},{"$nulls":30},{"$f":"VLOOKUP(AH50,AH50:AR144,$AE$1,FALSE)","v":"keskiviiva ca 1,400 -1,500 mm: n korkeudella lattiasta"},"osa cca 1.400 až 1.500 mm od podlahy","center line ca 1.400 -1.500 mm above floor","Achse ca. 1.400 bis 1.500 mm vom Boden","oś ok. 1.400 do 1.500 mm od podłogi","axe d'env. 1 400 a 1 500 mm a compter ","hartlijn ca. 1.400 - 1.500 boven de vloer","Keskjoon ca 1400-1500 mm põrandast","keskiviiva ca 1,400 -1,500 mm: n korkeudella lattiasta","осевая линия примерно 1.400-1.500 мм над уровнем пола"]
[null,{"$f":"VLOOKUP(AG56,AG2:AR97,$AE$1+1,FALSE)","v":"Lattian pitää olla tasainen ja vaakasuora."},{"$nulls":15},{"$f":"VLOOKUP(AG26,AG2:AR97,$AE$1+1,FALSE)","v":"\nRakenteellinen:"},{"$nulls":14},{"$f":"VLOOKUP(AH51,AH51:AR145,$AE$1,FALSE)","v":"Pistorasiasta CEE 16A, 5P, 400V, suojattu 6 A (10 A) katkaisijalla, vikavirtasuoja I = 30 mA."},"zásuvka CEE 16 A, 5P, 400 V, jištěno 6 A (10 A) jističem, proudový chránič I=30 mA","Electric outlet CEE 16 A, 5P, 400 V, protect by 6 A (10 A) circuit breaker, residual current device I=30 mA.","Steckdose CEE 16 A, 5P, 400 V, Sicherung 6 A (10 A) mit Schutzschalter, Stromschutz  I=30 mA.","gniazdo CEE 16 A, 5P, 400 V, ochrona za pomocą bezpiecznika 6A (10A), wyłącznik prądowy l=30 mA","prise CEE 16 A, 5P, 400 V, assuré par un disjoncteur 6 A (10 A),  disjoncteur I=30 mA","Eurostopcontact CEE 16 A, 5P, 400V, afgezekerd met 6A (10A), Overstroombeveiliging I=30mA. ","jõupesa CEE 16A, 5P, 400V koos 6A (10A) kaitsmega. Rikkevookukaitse I=30 mA","Pistorasiasta CEE 16A, 5P, 400V, suojattu 6 A (10 A) katkaisijalla, vikavirtasuoja I = 30 mA.","электрическая розетка CEE 16А, 5P, 400V, защита автоматическим выключателем 6А(10А), устройство защитного отключения (УЗО) I=30mA"]
[{"$nulls":17},{"$f":"VLOOKUP(AG27,AG2:AR97,$AE$1+1,FALSE)","v":"Toimittaa ja asentaa asennuskehyksen ja asennuspinnat kiskoille ja jousipaketille tapauksessa jossa kevytbetooni tai sandwich-paneeli jne."}]
[null,{"$f":"VLOOKUP(AG59,AG2:AR97,$AE$1+1,FALSE)","v":"YKSIKKÖ mm"}]
[null,"W =",{"$f":"VLOOKUP(AG60,AG2:AR97,$AE$1+1,FALSE)","v":"Oviaukon leveys"},{"$nulls":3},{"$f":"VLOOKUP(AG75,AG6:AR100,$AE$1+1,FALSE)","v":"Käsikäyttöinen"},{"$nulls":5},{"$f":"VLOOKUP(AG82,AG6:AR100,$AE$1+1,FALSE)","v":"Tila oviaukon päällä"},{"$nulls":4},{"$f":"VLOOKUP(AG28,AG3:AR97,$AE$1+1,FALSE)","v":"Asennus mahdollisuudet vaakakiskoille enintään 1 metrin korkeudella kiskoista pitää olla mahdollista."},{"$nulls":14},{"$f":"VLOOKUP(AH54,AH54:AR148,$AE$1,FALSE)","v":"Ylä ja sivukarmien sekä jousipaketin asennuspinnan pitää olla tasaisia ja samassa linjassa"},"Stěna nad překladem, stěny vedle otvoru a plochy pro montáž konzol musí být rovné a v jedné rovině.","The rear face of the lintel and the door jambs, as well as the surface for the spring packet must be levelled and in line.","Die hinteren Seiten der Sturze und Pfeiler, sowie die Montagefläche für das Federpaket müssen eben und auf einer Linie liegen.","Ściany tłumaczenia, obok ściany otworu oraz wszystkie obszary i zbiórki musi być kolor.","La surface d'appui pour la pose de la porte sectionnelle doit etre dans le meme plan et verticale.","De achterkanten van de penanten, de latei en de montagevlakken van het verenpakket dienen vlak en in één lijn te liggen.","Kõik paigalduspinnad peavad olema ühes tasapinnas ja loodis","Ylä ja sivukarmien sekä jousipaketin asennuspinnan pitää olla tasaisia ja samassa linjassa","Монтажная поверхность должна быть ровной и распологаться в одной вертикальной плоскости"]
[null,"H =",{"$f":"VLOOKUP(AG61,AG3:AR97,$AE$1+1,FALSE)","v":"Oviaukon korkeus"},{"$nulls":3},"L/R",{"$f":"VLOOKUP(AG76,AG6:AR100,$AE$1+1,FALSE)","v":"\nKaksipuoleinen"},{"$nulls":3},{"$f":"IF(K11=AG126,\"min.150\",\"min. 125\")","v":"min. 125"},"F",{"$f":"IF(AND(K5<5500,K3<7000),O56,O57)","v":420},{"$f":"IF(K9=AG120,N55+40,N55)","v":420},{"$f":"IF(K13=AG131,O55+80,IF(K13=AG132,O55+100,IF(K13=AG133,O55+120,IF(K13=AG134,O55+240,O55))))","v":420},{"$nulls":16},{"$f":"VLOOKUP(AH55,AH55:AR149,$AE$1,FALSE)","v":"Lisäksi oviaukon pitää olla pysty- ja vaakasuora sekä nelikulmainen."},"Otvor musí být svislý a obdélníkový.","Furthermore the opening must be plumb and square.","Im übrigen müssen die lichten Masse eben und rechtwinklig sein.","Otwór musi być pionowy i prostokątny.","L'ouverture de la baie doit etre parfaitement de niveau et d'equerre.","Tevens moet de dagmaat vlak en haaks zijn.","Ava peab olema täpne ja nelinurkne","Lisäksi oviaukon pitää olla pysty- ja vaakasuora sekä nelikulmainen.","Проем также должен быть ровным и прямоугольным."]
[null,"F = ",{"$f":"VLOOKUP(AG64,AG5:AR99,$AE$1+1,FALSE)","v":"vapaa ylätila"},{"$nulls":3},"D",{"$f":"VLOOKUP(AG79,AG6:AR100,$AE$1+1,FALSE)","v":"tila takana"},null,null,"H + 490",{"$f":"IF(OR(K3=\"\",K5=\"\"),\"\",K5+490)","v":""},"H<5500 & W<7000",null,420,null,null,{"$f":"VLOOKUP(AG29,AG2:AR97,$AE$1+1,FALSE)","v":"Tarvittava kiinnityspinta ja vapaa tilaa kuvan mukaisesti."},{"$nulls":14},{"$f":"VLOOKUP(AH56,AH56:AR150,$AE$1,FALSE)","v":"Lattian pitää olla tasainen ja vaakasuora."},"Podlaha musí být rovná a vodorovná.","Floor area must be flat and horizontal.","Der Fussboden muss glatt und waagerecht sein.","Podłoga musi być równa i pozioma.","Le sol doit etre parfaitement horizontal et plan.","De afgewerkte vloer dient vlak en waterpas te liggen.","Põrandapind peab olema sile ja horisontaalne","Lattian pitää olla tasainen ja vaakasuora.","Обработанный пол должен быть ровным и без склонов."]
[null,"A= ",{"$f":"VLOOKUP(AG83,AG6:AR100,$AE$1+1,FALSE)","v":"Akseli ovipalkkin päällä"},{"$nulls":3},{"$f":"VLOOKUP(AG77,AG6:AR100,$AE$1+1,FALSE)","v":"Sähkö- tai ketjukäytöinen"},{"$nulls":5},"H<7000",null,500,null,null,{"$f":"VLOOKUP(AG30,AG2:AR97,$AE$1+1,FALSE)","v":"Sähkönsyöttö tarvittu:"}]
[null,"L = ",{"$f":"VLOOKUP(AG66,AG7:AR101,$AE$1+1,FALSE)","v":"vapaa tila vasemalla"},{"$nulls":3},"L/R",{"$f":"VLOOKUP(AG78,AG6:AR100,$AE$1+1,FALSE)","v":"Mootorin tai ketjun puolinen"},{"$nulls":3},{"$f":"IF(K11=AG126,\"min.400\",\"min. 375\")","v":"min. 375"},{"$nulls":5},{"$f":"VLOOKUP(AG31,AG2:AR97,$AE$1+1,FALSE)","v":"400V / 230V 3 vaihe+neutraali ja maadoitus tarjotuna Euro pistorasiasta."}]
[null,"R = ",{"$f":"VLOOKUP(AG67,AG8:AR102,$AE$1+1,FALSE)","v":"vapaa tila oikealla"},{"$nulls":3},"D",{"$f":"VLOOKUP(AG79,AG6:AR100,$AE$1+1,FALSE)","v":"tila takana"},null,null,"H + 660",{"$f":"IF(OR(K3=\"\",K5=\"\"),\"\",K5+660)","v":""},{"$f":"VLOOKUP(AG83,AG6:AR100,$AE$1+1,FALSE)","v":"Akseli ovipalkkin päällä"},{"$nulls":19},{"$f":"VLOOKUP(AH59,AH59:AR153,$AE$1,FALSE)","v":"YKSIKKÖ mm"},"Rozměry jsou v mm","UNITS in mm","MASSE in mm","Wymiary podane w mm","MESURES en mm","MATEN in mm","Mõõdud mm","YKSIKKÖ mm","размеры в мм:"]
[null,"G=",{"$f":"VLOOKUP(AG69,AG9:AR103,$AE$1+1,FALSE)","v":"Katon kaltevuus"},{"$nulls":3},{"$f":"VLOOKUP(AG80,AG6:AR100,$AE$1+1,FALSE)","v":"Ripustuspiste jos"},null,"D<3000",{"$nulls":3},"A",{"$f":"IF(AND(K5<5500,K3<7000),O61,O62)","v":340},{"$f":"IF(K9=AG120,N60+40,N60)","v":340},{"$f":"IF(K13=AG131,O60+80,IF(K13=AG132,O60+100,IF(K13=AG133,O60+120,IF(K13=AG134,O60+240,O60))))","v":340},null,{"$f":"VLOOKUP(AG86,AG2:AR97,$AE$1+1,FALSE)","v":"\nSuunnitellut:"},null,{"$f":"VLOOKUP(AG87,AG2:AR97,$AE$1+1,FALSE)","v":"Tarkistanut"},null,{"$f":"VLOOKUP(AG88,AG2:AR97,$AE$1+1,FALSE)","v":"\nHyväksytty - päivämäärä:"},null,{"$f":"VLOOKUP(AG89,AG2:AR97,$AE$1+1,FALSE)","v":"\nTiedoston nimi:"},null,{"$f":"VLOOKUP(AG90,AG2:AR97,$AE$1+1,FALSE)","v":"Päivämäärä:"},{"$f":"VLOOKUP(AG91,AG2:AR97,$AE$1+1,FALSE)","v":"Mittakaava:"},{"$f":"VLOOKUP(AG92,AG2:AR97,$AE$1+1,FALSE)","v":"Lista:"},{"$nulls":4},"Oviaukon leveys","Šířka otvoru","Opening width","Lichte Breite","Szerokość otworu","LARGEUR DE BAIE","Dagmaat breedte","Ava laius","Oviaukon leveys","ширина проема"]
[null,"D = ",{"$f":"VLOOKUP(AG68,AG9:AR103,$AE$1+1,FALSE)","v":"tila takana"},{"$nulls":3},"X",{"$f":"VLOOKUP(AG81,AG6:AR100,$AE$1+1,FALSE)","v":"Ripustuspiste"},null,null,"H ",{"$f":"IF(OR(K3=\"\",K5=\"\"),\"\",K5)","v":""},"F=420",null,340,null,null,"K. Luňák",null,"R. Kříž",null,"2020-04-15",null,"STP",null,"2020-04-15","-","A3",{"$nulls":4},"Oviaukon korkeus","Výška otvoru","Opening height","Lichte Höhe","Wysokość otworu","HAUTEUR DE BAIE","Dagmaat hoogte","Ava kõrgus","Oviaukon korkeus","высота проема"]
[null,"X =",{"$f":"VLOOKUP(AG71,AG13:AR105,$AE$1+1,FALSE)","v":"1. ripustuspiste"},{"$nulls":3},{"$f":"VLOOKUP(AG80,AG6:AR100,$AE$1+1,FALSE)","v":"Ripustuspiste jos"},null,"3000=<D<4500",{"$nulls":3},"F=500",null,380,null,null,"http://door-documents.com/en/indy-installation-drawing-fsl",{"$nulls":3},{"$f":"VLOOKUP(AG93,AG2:AR97,$AE$1+1,FALSE)","v":"ASENNUSPIIRUSTUS "},{"$nulls":10},"korkeanosto","High lift","High lift","Höhe der Führung","Wyciąg wysoki","LEEVE HAUTE","High lift","Kõrge tõste","korkeanosto","Высокий подъем"]
[null,"Y = ",{"$f":"VLOOKUP(AG72,AG14:AR106,$AE$1+1,FALSE)","v":"2. ripustuspiste"},{"$nulls":3},"X",{"$f":"VLOOKUP(AG71,AG6:AR100,$AE$1+1,FALSE)","v":"1. ripustuspiste"},null,null,"H ",{"$f":"IF(OR(K3=\"\",K5=\"\"),\"\",K5)","v":""},{"$nulls":20},"sisäkorkeus","Výška stropu","Interior height","Höhe Innenraum","Wysokość stropu","HAUTEUR SOUS PLAFOND","Hoogte binnenruimte","Sisemine kõrgus","sisäkorkeus","высота внутри помещения до перекрытий"]
[null,"Z = ",{"$f":"VLOOKUP(AG73,AG15:AR107,$AE$1+1,FALSE)","v":"3. ripustuspiste"},{"$nulls":3},"Y",{"$f":"VLOOKUP(AG72,AG6:AR100,$AE$1+1,FALSE)","v":"2. ripustuspiste"},null,null,"1/2 X",{"$f":"IF(OR(K3=\"\",K5=\"\"),\"\",L63/2)","v":""},{"$nulls":9},{"$f":"AG12","v":"KALLISTUKSELLA VAKIONOSTO (FSL420(500))"},{"$nulls":10},"vapaa ylätila","Volný prostor nad překladem","Free room above lintel","Freiraum über Sturz","Wolna przestrzeń nad nadprożem","RETOMBEE DE LINTEAU DISPONIBLE","Vrije ruimte boven latei","Vaba ruum laeni","vapaa ylätila","свободное пространство над проемом"]
[{"$nulls":6},{"$f":"VLOOKUP(AG80,AG6:AR100,$AE$1+1,FALSE)","v":"Ripustuspiste jos"},null,"D>=4500",{"$nulls":23},"Rungon korkeus oviaukon yläpuolella.","Výška montážní plochy nad otvorem","Height of frame above opening","Höhe über Montagefläche Loch","Wysokość powyżej otworu montażowego powierzchni","HAUTEUR AU-DESSUS DU TROU DE SURFACE DE MONTAGE","Hoogte frame boven latei","Raami kõrgus ava kohal","Rungon korkeus oviaukon yläpuolella.","высота конструкции ворот над проемом"]
[{"$nulls":6},"X",{"$f":"VLOOKUP(AG71,AG6:AR100,$AE$1+1,FALSE)","v":"1. ripustuspiste"},null,null,"H",{"$f":"IF(OR(K3=\"\",K5=\"\"),\"\",K5)","v":""},{"$nulls":20},"vapaa tila vasemalla","Volný prostor vlevo","Free side room left","Freiraum LINKS","Wolna przestrzeń W LEWO","ECOINCON GAUCHE","Vrije zijruimte links","Vaba küljeruum vasakul","vapaa tila vasemalla","свободное боковое пространство СЛЕВА"]
[{"$nulls":6},"Y",{"$f":"VLOOKUP(AG72,AG6:AR100,$AE$1+1,FALSE)","v":"2. ripustuspiste"},null,null,"(X/3)*2",{"$f":"IF(OR(K3=\"\",K5=\"\"),\"\",(L66/3)*2)","v":""},{"$nulls":9},{"$f":"AG12","v":"KALLISTUKSELLA VAKIONOSTO (FSL420(500))"},{"$nulls":3},{"$f":"VLOOKUP(AG96,AG2:AR97,$AE$1+1,FALSE)","v":"Koodi:"},{"$f":"VLOOKUP(AG97,AG2:AR97,$AE$1+1,FALSE)","v":"Versio:"},{"$nulls":5},"vapaa tila oikealla","Volný prostor vravo","Free side room right","Freiraum RECHTS","Wolna przestrzeń W PRAWO","ECOINCON DROITE","Vrije zijruimte rechts","Vaba küljeruum paremal","vapaa tila oikealla","свободное боковое пространство СПРАВА"]
[{"$nulls":6},"Y2",{"$f":"VLOOKUP(AG73,AG8:AR102,$AE$1+1,FALSE)","v":"3. ripustuspiste"},null,null,"X/3",{"$f":"IF(OR(K3=\"\",K5=\"\"),\"\",(L66/3))","v":""},{"$nulls":13},"010-2",2016,{"$nulls":5},"tila takana","Hloubka vedení","Back room","Einbautiefe","Głębokość prowadzenia poziomego","REFOULEMENT HORS-TOUT","Inbouwdiepte","Sügavus","tila takana","монтажная глубина"]
[{"$nulls":32},"Katon kaltevuus","Úhel sklonu střechy","Gradient of the roof","Deckenwinkel","Głębokość prowadzenia poziomego","PENTE DU TOIT","Hellingshoek van het dak","Katusekalle","Katon kaltevuus","уклон крыши"]
[{"$nulls":32},"riiputuspiste holkille","Kotvící body pro jekl","Hanging point for sleeves","Aufhängepunkt für Vierkantrohr","Punkt mocowania dla profilu zamkn","POINT D'ANCRAG POUR FIXATION DU TUBE ","Bevestigingspunt voor kokers","Nelikantoru kinnituskoht","riiputuspiste holkille","точки крепления торсионной системы"]
[{"$nulls":32},{"$f":"VLOOKUP(AH71,AH71:AR163,$AE$1,FALSE)","v":"1. ripustuspiste"},"Kotvící bod č. 1","1 st hanging point","1. Aufhängepunkt","Punkt mocowania nr 1","POINT D'ANCRAGE 1 SUSPENTE","1e ophangpunt","1.kinnituskoht","1. ripustuspiste","1 точка крепления горизонтальных направляющих"]
[{"$nulls":32},{"$f":"VLOOKUP(AH72,AH72:AR164,$AE$1,FALSE)","v":"2. ripustuspiste"},"Kotvící bod č. 2","2 nd hanging point","2. Aufhängepunkt","Punkt mocowania nr 2","POINT D'ANCRAGE 2 SUSPENTE","2e ophangpunt","2.kinnituskoht","2. ripustuspiste","2 точка крепления горизонтальных направляющих"]
[{"$nulls":32},{"$f":"VLOOKUP(AH73,AH73:AR165,$AE$1,FALSE)","v":"3. ripustuspiste"},"Kotvící bod č. 3","3 rd hanging point","3. Aufhängepunkt","Punkt mocowania nr 3","POINT D'ANCRAGE 3 SUSPENTE","3e ophangpunt","3. kinnituskohta","3. ripustuspiste","3 точка крепления горизонтальных направляющих"]
[{"$nulls":32},{"$f":"VLOOKUP(AH74,AH74:AR165,$AE$1,FALSE)","v":"Vapaa tila asennuspisten kohdalla"},"Volný prostor nad překladem","Free room above mounting surface","Freiplatz auf der Mountageplatz","Wolny przestrzeń nad nadproźem","Espace au-dessus de la surface de montage","Ruimte boven montagevlak","Vaba ruum ülalpool paigalduspinda","Vapaa tila asennuspisten kohdalla","технологический зазор"]
[{"$nulls":32},{"$f":"VLOOKUP(AH75,AH75:AR166,$AE$1,FALSE)","v":"Käsikäyttöinen"},"Ruční ovládání","Manually operated","Handbedienung","Sterowanie ręczne","PORTE MANUELLE","Handbediend","Käsitsi avatav","Käsikäyttöinen","ручное управление"]
[{"$nulls":32},"\nKaksipuoleinen","Obě strany","Both sided","Beide Seiten","Obie strony","LES 2 COTES","Beide zijden","Mõlemal pool","\nKaksipuoleinen","обе стороны"]
[{"$nulls":32},"Sähkö- tai ketjukäytöinen","Ovládání elektricky nebo řetězovým převodem","Electrical or hauling chain operated","Elektrisch- oder Haspelkettenbedient","Sterowanie elektr. lub za pom. przekł. łańc.","PORTE MOTORISEE OU AVEC TREUIL A CHAINE","Elektrisch- of handketting bediend","Elektriliselt või taliga avatav","Sähkö- tai ketjukäytöinen","электрическое управление или с помощью цепи"]
[{"$nulls":32},"Mootorin tai ketjun puolinen","Motor nebo řetěz. př.","Motor or chain side","Motor-oder Kettenseite","Silnik lub przekł. łańc.","ECOINCON LIBRE A COTE DE MOTEUR","Motor- of kettingzijde","Mootori või tali pool","Mootorin tai ketjun puolinen","сторона цепи или мотора"]
[{"$nulls":32},"Tila takana","Hloubka vedení","Back room","Einbautiefe","Głębokość prowadzenia","REFOULEMENT HORS-TOUT","Inbouwdiepte","Sügavus","Tila takana","монтажная глубина"]
[{"$nulls":32},"Ripustuspiste jos","Kotvící bod, když je","Hanging point if","Aufhängepunkte, wenn","Punkty mocowania, jeżeli","POINT D'ANCRAGE DES SUSPENTES, SI","Ophangpunt, als","Kinnituskoht, kui ","Ripustuspiste jos","точки крепления горизонтальных направляющих, если"]
[{"$nulls":32},"Ripustuspiste","Kotvící bod","Hanging point","Aufhängepunkte","Punkty mocowania","POINT D'ANCRAGE DES SUSPENTES","Ophangpunt","Kinntuskoht","Ripustuspiste","точка крепления"]
[{"$nulls":32},"Tila oviaukon päällä","Volný prostor nad překladem","Free room above lintel","Freiraum über Sturz","Wolna przestrzeń nad nadprożem (min.)","RETOMBEE DE LINTEAU DISPONIBLE","Vrije ruimte boven latei","Vaba ruum sillusest  laeni","Tila oviaukon päällä","свободное пространство над проемом"]
[{"$nulls":32},"Akseli ovipalkkin päällä","Osa hřídele nad překladem","Height of shaft above lintel","Mitte Achse zum Sturz","Oś wału nad nadprożem","POSITIONNEMENT AXE DE l'ARBRE DE LINTEAU","Center as boven latei","Kesktelg","Akseli ovipalkkin päällä","центральная ось вала"]
[]
[]
[{"$nulls":32},"\nSuunnitellut:","Sestavil:","Designed by:","Aufgestellt:","Wykonał:","DESSINE PAR:","Getekend door:","Joonestatud:","\nSuunnitellut:","спроектировано:"]
[{"$nulls":32},"Tarkistanut","Upravil:","Checked by","Bereinigt:","Skorygował:","MODIFIE PAR:","Gecontroleerd door:","Kontrollitud:","Tarkistanut","проверил:"]
[{"$nulls":32},"\nHyväksytty - päivämäärä:","Schváleno - datum:","Approved by - date:","Bereinigt am:","Skorygowano dnia:","MODIFIE LE (DATE):","Goedgekeurd datum:","Kinnitatud:","\nHyväksytty - päivämäärä:","одобрил-дата:"]
[{"$nulls":32},"\nTiedoston nimi:","Název souboru:","File name:","Dateiname:","Nazwa pliku:","TITRE:","Bestandsnaam","Faili nimi:","\nTiedoston nimi:","навание файла:"]
[{"$nulls":32},"Päivämäärä:","Datum:","Date:","Datum:","Data:","DATE:","Datum:","Kuupäev:","Päivämäärä:","дата:"]
[{"$nulls":32},"Mittakaava:","Měřítko","Scale:","Massst.:","Podział.:","ECHELLE:","Schaal:","Mõõtkava:","Mittakaava:","шкала:"]
[{"$nulls":32},"Lista:","Formát: ","Sheet:","Format:","Format:","FORMAT:","Sheet:","Formaat:","Lista:","лист:"]
[{"$nulls":32},"ASENNUSPIIRUSTUS ","STAVEBNÍ PŘIPRAVENOST     ","INSTALLATION DRAWING         ","BAUBEREITSCHAFT","PRZYGOTOWANIE KONSTRUKCYJNE   ","PLAN DE RESERVATIONS & ENCOMBREMENTS                                         ","INBOUWTEKENING VOORGE STANDAARD PLAFONDSYSTEEM","Paigaldusjoonis","ASENNUSPIIRUSTUS ","монтажный чертеж"]
[{"$nulls":32},"jouset ovipalkkin päällä","pružiny nad překladem ","springs above lintel "," Federn oberhalb des Sturzes ","sprężyny nad nadprożem ","RESSORTS AVANTS DEPORTES DU LINTEAU","verenpakket boven latei","vedrud ava kohal","jouset ovipalkkin päällä","нижнее расположение вала"]
[{"$nulls":32},0,"VERTIKÁLNÍ SYSTÉM","VERTICAL LIFT SYSTEM","VERTIKALER BESCHLAG (VL-T)","PROWADZENIE PIONOWE (VL-T)","LEVEE VERTICALE (VL)","VERTICAAL PLAFONDSYSTEEM"]
[{"$nulls":32},"Koodi:","Kód:","Code:","Kode:","Kod:","CODE:","Nr.:","Kood:","Koodi:","код:"]
[{"$nulls":32},"Versio:","Verze:","Version:","Version:","Wersja:","VERSION:","Versie:","Versioon:","Versio:","версия:"]
[{"$nulls":32},"EI VAADITTU","NENÍ POŽADOVÁNO","NOT REQUIRED","NICHT ERFORDELICH","Nie jest wymagane","Pas nécessaire","NIET BENODIGD","Mitte vajalik","EI VAADITTU","НЕ ТРЕБУЕТСЯ"]
[]
[{"$nulls":32},"\nTäytä kentät, jotka on merkitty värillä!","Prosím, vyplňte pole, která jsou označena barevně!","Please, fill in the fields that are marked in color!","Fülen Sie bitte markierte Felder!","Prosimy o wypełnienie pól oznaczonych kolorem!","S'il vous plaît remplissez les champs qui sont marqués en couleur!","Vul a.u.b. de gemarkeerde velden in!","Palun täida värvilised väljad!","\nTäytä kentät, jotka on merkitty värillä!","пожалуйста, заполните поля обозначенные цветом!"]
[]
[{"$nulls":32},"Ohjattu","Ovládání","Operated","Bedienung","Sterowanie","PORTE","Bediening","Avamine","Ohjattu","Тип управления"]
[{"$nulls":32},"manuaalisesti","ručně","manually","hand","ręcznie wykonany","MANUELLE","hand","käsitsi","manuaalisesti","вручную"]
[{"$nulls":32},"sähköisesti","elektricky","electrical ","elektrisch","elektrycznie","MOTORISEE","elektrisch","elektriliselt","sähköisesti","электрическое управление или с помощью цепи"]
[{"$nulls":32},"ketjukäyttöinen","řetězovým převodem","hauling chain operated","Haspelkette","Łańcuch napędu","TREUIL A CHAINE","handketting","taliga","ketjukäyttöinen","\nцепной привод\nцепной привод"]
[]
[{"$nulls":32},"Mootorin asema","Umístění motoru","Position of motor","Antriebsposition","Pozycja sylnika","LA POSITION MOTEUR","Positie van de motor","mootori asukohta","Mootorin asema","расположение мотора"]
[{"$nulls":32},"Vasemallla","Na levé straně","On the left side","Auf der linken Seiten","Po lewej stronie","SUR LE COTE GAUCHE","Aan de linkerzijde","vasakul küljel","Vasemallla","с левой стороны"]
[{"$nulls":32},"Oikealla","Na pravé straně","On the right side","Auf der rechten Seiten","Po prawej strony","SUR LE COTE DROIT","Aan de rechterzijde","paremal küljel","Oikealla","с правой стороны"]
[]
[{"$nulls":32},0,"Variantní  montáž pružin","Additional spring mounting","Extra Aufhängung Federpaket","Wariant montażu sprężyn","MONTAGE DES RESSORTS","Extra veer monteren"]
[{"$nulls":32},0,"když B<2000 - STP-1 pružina (SPR-1)","if W< 2000 - INSD-1 spring (SPR-1)","Wenn W< 2000 - BAUS-1 Feder (SPR-1)","jeżeli W< 2000-STP-1 sprężyna (SPR-1)","SI W< 2000 STP-1RESSORT (SPR-1)","als B<2000 - INSD-1 veer (SPR-1)"]
[{"$nulls":32},0,"když 2000>=W<6000 - STP-2 pružiny (SPR-2)","if 2000>=W<6000 - INSD-2 springs (SPR-2)","Wenn 2000>=W<6000- BAUS-2 Federn (SPR-2)","jeżeli 2000>=W<6000-STP-2 sprężyna (SPR-2)","SI 2000>=W<6000 STP-2RESSORTS (SPR-2)","als 2000>=B<6000 - INSD-2 veren (SPR-2)"]
[{"$nulls":32},0,"když W>=6000 = STP-4 pružiny (SPR-4)","if W>=6000 - INSD-4 springs (SPR-4)","Wenn W>=6000 - BAUS-4 Federn (SPR-4)","jeżeli W>=6000-STP-4 sprężyna (SPR-4)","SI W> 6000 STP-4RESSORTS (SPR-4)","als B>=6000 - INSD-4 veren (SPR-4)"]
[]
[{"$nulls":32},"Mootorin asenuspinta","Montážní plocha pro motor","Mounting surface for motor","Montagefläche für Antriebe","powierzchnia montażowa dla silnika","Surface de montage pour le moteur","Montagevlak voor motor","Mootori kinnituspind","Mootorin asenuspinta","Монтажная поверхность для мотора"]
[]
[{"$nulls":32},"lamellin tyypi","Typ panelu","Type of panel","Paneel-Typ","Rodzaj panelu","Type de panneau","Panel type","Paneelitüüp","lamellin tyypi","Тип панели"]
[{"$nulls":32},"40mm","40mm","40mm","40mm","40mm","40mm","40mm","40 mm","40mm","40мм"]
[{"$nulls":32},"80mm","80mm","80mm","80mm","80mm","80mm","80mm","80 mm","80mm","80мм"]
[]
[{"$nulls":32},"Kun 1 1/4 \"akseli, ovipalkki on HL + 360 ja akselin keskiviiva on HL + 210 mm","Když 1 1/4\" hřídel, tak překlad automaticky HL+360 a osa hřídele HL+210 mm","When 1 1/4 \"shaft, lintel is HL+360 and axis of shaft is HL + 210 mm","Wenn 1 1/4 \"Schaft, Sturz ist HL + 360 und Achse der Welle ist HL + 210 mm","Po 1 1/4 \"Wał, nadproża jest HL + 360 i oś wału jest HL + 210 mm","Lorsque 1 1/4 \"arbre, linteau est HL + 360 et l'axe ou l'arbre est HL + 210 mm","Wanneer 1 1/4 \"schacht, latei is HL + 360 en as van de as is HL + 210 mm","1 1/4\" võlli puhul, sillus on HL+360 ja võlli kesktelg on HL+210 MM","Kun 1 1/4 \"akseli, ovipalkki on HL + 360 ja akselin keskiviiva on HL + 210 mm","при использовании вала 1,25 дюйма перемычка (F) = HL+360 и ось вала (A) = HL+210мм"]
[]
[{"$nulls":32},"Kiskojen tyyppi","Typ vedení","Type of rails","Laufschienen-Typ","Typ moznazowych","Type des rails","Type looprails","Siinide tüüp","Kiskojen tyyppi","Тип направляющих"]
[{"$nulls":32},"2\"","2\"","2\"","2\"","2\"","2\"","2\"","2\"","2\"","2\""]
[{"$nulls":32},"3\"","3\"","3\"","3\"","3\"","3\"","3\"","3\"","3\"","3\""]
[]
[{"$nulls":32},"Kulma","Úhel","Angle","Winkel","Kąt","Angle","Hoek","Vinkel","Kulma","Угол"]
[]
[{"$nulls":32},"3°-25°"]
[{"$nulls":32},"26°-30°"]
[{"$nulls":32},"31°-35°"]
[{"$nulls":32},"36°-39°"]
[{"$nulls":32},"40°-45°"]

{"sheet":"SW-R FSL420_500","index":1,"n_rows":48,"n_cols":8,"rows_kept":48,"merged":[[4,7,7,7],[5,0,9,0],[6,1,10,1],[14,0,17,0],[39,2,40,8],[41,2,42,3],[41,4,42,6],[41,7,48,8],[43,2,44,3],[43,4,44,6],[45,2,46,3],[45,4,46,6],[47,2,48,3],[47,4,48,6]]}
[]
[]
[]
[null,null,{"$f":"IF(FSL_420_500!K11=\"2\"\"\",100,120)","v":120}]
[{"$nulls":7},{"$f":"FSL_420_500!H17","v":160}]
[{"$f":"FSL_420_500!B19","v":"A= 340"}]
{"$rows_empty":8}
[{"$f":"FSL_420_500!B21","v":"H= "}]
{"$rows_empty":12}
[null,{"$f":"FSL_420_500!C30","v":100},null,"W=",{"$f":"FSL_420_500!E32","v":0},null,null,{"$f":"FSL_420_500!F30","v":100}]
{"$rows_empty":11}
[null,null,{"$f":"FSL_420_500!X2","v":"KALLISTUKSELLA VAKIONOSTO (FSL420(500))"}]
[]
[null,null,{"$f":"FSL_420_500!AG107","v":"Mootorin asema"},null,{"$f":"FSL_420_500!AG109","v":"Oikealla"}]
[]
[null,null,{"$f":"FSL_420_500!R60","v":"\nSuunnitellut:"}]
[]
[null,null,{"$f":"FSL_420_500!T60","v":"Tarkistanut"}]
[]
[null,null,{"$f":"FSL_420_500!Z60","v":"Päivämäärä:"}]

{"sheet":"SW-L FSL420_500","index":2,"n_rows":48,"n_cols":9,"rows_kept":48,"merged":[[5,1,8,1],[5,8,9,8],[6,7,10,7],[14,8,17,8],[39,2,40,8],[41,2,42,3],[41,4,42,6],[41,7,48,8],[43,2,44,3],[43,4,44,6],[45,2,46,3],[45,4,46,6],[47,2,48,3],[47,4,48,6]]}
[]
[]
[]
[{"$nulls":6},{"$f":"IF(FSL_420_500!$K$11=\"2\"\"\",100,120)","v":120}]
[]
[null,{"$f":"FSL_420_500!$H$17","v":160},{"$nulls":6},{"$f":"FSL_420_500!B19","v":"A= 340"}]
{"$rows_empty":8}
[{"$nulls":8},{"$f":"FSL_420_500!B21","v":"H= "}]
{"$rows_empty":10}
[null,null,{"$f":"FSL_420_500!$C$30","v":100},null,"W=",{"$f":"FSL_420_500!E32","v":0},null,{"$f":"FSL_420_500!$F$30","v":100}]
{"$rows_empty":13}
[null,null,{"$f":"FSL_420_500!X2","v":"KALLISTUKSELLA VAKIONOSTO (FSL420(500))"}]
[]
[null,null,{"$f":"FSL_420_500!AG107","v":"Mootorin asema"},null,{"$f":"FSL_420_500!AG108","v":"Vasemallla"}]
[]
[null,null,{"$f":"FSL_420_500!R60","v":"\nSuunnitellut:"}]
[]
[null,null,{"$f":"FSL_420_500!T60","v":"Tarkistanut"}]
[]
[null,null,{"$f":"FSL_420_500!Z60","v":"Päivämäärä:"}]